bitfinex-derivatives/quotes_BTCF0:USTF0_20250405
["timestamp","ask_amount","ask_price","bid_price","bid_amount"]
[1743890931633,0.1375643,83064.0,83063.0,0.12145753]
[1743890934039,0.1375643,83064.0,83063.0,0.13558635]
[1743890935435,0.1375643,83064.0,83063.0,0.21989175]
[1743890936139,0.1375643,83064.0,83063.0,0.13558635]
[1743890937130,0.1375643,83064.0,83063.0,0.13558702]
[1743890937330,0.1869643,83064.0,83063.0,0.13558702]
[1743890937846,0.1869643,83064.0,83063.0,0.04268702]
[1743890938042,0.2391643,83064.0,83063.0,0.04268702]
[1743890940746,0.2391643,83064.0,83063.0,0.04269786]
[1743890941241,0.2391643,83064.0,83063.0,0.12700326]
[1743890942741,0.2391643,83064.0,83063.0,0.22630326]
[1743890943744,0.2391643,83064.0,83063.0,0.22630043]
[1743890943945,0.2391643,83064.0,83063.0,0.21216293]
[1743890949144,0.1375643,83064.0,83063.0,0.22630043]
[1743890949350,0.1375643,83064.0,83063.0,0.22631481]
[1743890949548,0.0890643,83064.0,83063.0,0.22631451]
[1743890949748,0.00476,83064.0,83063.0,0.22631451]
[1743890949951,1e-08,83065.0,83064.0,0.0843043]
[1743890950145,1e-08,83065.0,83064.0,0.26533212]
[1743890950350,1e-08,83065.0,83064.0,0.41533212]
[1743890950851,1e-08,83065.0,83064.0,0.43268233]
[1743890951155,0.17954315,83072.0,83071.0,0.0842972]
[1743890951348,0.17954315,83072.0,83071.0,0.57312146]
[1743890951540,0.17954315,83072.0,83071.0,0.82292146]
[1743890951745,0.21507725,83079.0,83078.0,0.0842901]
[1743890951949,0.21507725,83079.0,83078.0,0.52035436]
[1743890952154,0.21507725,83079.0,83078.0,0.66555436]
[1743890952353,0.21507725,83079.0,83078.0,0.66884763]
[1743890952550,0.29936635,83079.0,83078.0,0.66884763]
[1743890953454,0.29936635,83079.0,83078.0,0.68692763]
[1743890953851,0.0842891,83079.0,83078.0,0.68692763]
[1743890954149,0.00017993,83080.0,83079.0,0.0842891]
[1743890954355,0.08446803,83080.0,83079.0,0.1455291]
[1743890954545,0.00017993,83080.0,83079.0,0.2408291]
[1743890954952,0.00017993,83080.0,83079.0,0.25822663]
[1743890960254,0.08446803,83080.0,83079.0,0.25822663]
[1743890960858,0.00017993,83080.0,83079.0,0.25822663]
[1743890961461,0.08446803,83080.0,83079.0,0.25822663]
[1743890964466,0.13476803,83080.0,83079.0,0.25822663]
[1743890964769,0.18446803,83080.0,83079.0,0.25822663]
[1743890965352,0.08446803,83080.0,83079.0,0.25822663]
[1743890966170,0.00017993,83080.0,83079.0,0.25822663]
[1743890966472,0.08446803,83080.0,83079.0,0.25822663]
[1743890967370,0.13296803,83080.0,83079.0,0.25822663]
[1743890967572,0.13296803,83080.0,83079.0,0.2408291]
[1743890967972,0.13296803,83080.0,83079.0,0.25762041]
[1743890968269,0.13296803,83080.0,83079.0,0.61842041]
[1743890968473,0.13296803,83080.0,83079.0,0.67094041]
[1743890969675,0.13296803,83080.0,83079.0,0.43883131]
[1743890969972,0.33086803,83080.0,83079.0,0.01803131]
[1743890970173,0.33086803,83080.0,83066.0,0.28800413]
[1743890970174,0.0843013,83067.0,83066.0,0.28800413]
[1743890970379,0.4451013,83067.0,83066.0,0.28800413]
[1743890970578,0.4451013,83067.0,83066.0,0.28792413]
[1743890971685,0.0843043,83064.0,83063.0,8e-05]
[1743890971869,0.0843043,83064.0,83063.0,0.01008]
[1743890973683,0.0853043,83064.0,83063.0,0.01008]
[1743890975773,0.0861043,83064.0,83063.0,0.01088]
[1743890975973,0.0861043,83064.0,83063.0,0.0108]
[1743890976170,0.0843114,83057.0,83056.0,0.3608]
[1743890976370,0.0851114,83057.0,83056.0,0.4116]
[1743890977079,0.2366114,83057.0,83056.0,0.4116]
[1743890977581,0.2366114,83057.0,83056.0,0.4126]
[1743890977778,0.2366114,83057.0,83056.0,0.0518]
[1743890977978,0.2366114,83057.0,83056.0,0.051]
[1743890978277,0.2366114,83057.0,83056.0,0.0518]
[1743890980187,0.2366114,83057.0,83056.0,0.0508]
[1743890985983,0.2366114,83057.0,83056.0,0.1351125]
[1743890986183,0.2366114,83057.0,83056.0,0.0508]
[1743890987490,0.2386114,83057.0,83056.0,0.0508]
[1743890988086,0.2386114,83057.0,83056.0,0.103]
[1743890988282,0.2386114,83057.0,83056.0,0.1873125]
[1743890989780,0.1366114,83057.0,83056.0,0.2371125]
[1743890990886,0.0881114,83057.0,83056.0,0.1528]
[1743890991187,0.1404114,83057.0,83056.0,0.1528]
[1743890991488,0.1394114,83057.0,83056.0,0.1528]
[1743890991793,0.1404114,83057.0,83056.0,0.2371125]
[1743890993393,0.1922114,83057.0,83056.0,0.2371125]
[1743890993584,0.1922114,83057.0,83056.0,0.2551925]
[1743890994888,0.1912114,83057.0,83056.0,0.2551925]
[1743890996192,0.1912114,83057.0,83056.0,0.1351125]
[1743890996597,0.1912114,83057.0,83056.0,0.0508]
[1743890997098,0.1389114,83057.0,83056.0,0.2402125]
[1743890997290,0.0871114,83057.0,83056.0,0.2947125]
[1743890997596,0.1413114,83057.0,83056.0,0.2947125]
[1743890999296,0.0871114,83057.0,83056.0,0.2947125]
[1743891000884,0.0861114,83057.0,83056.0,0.2947125]
[1743891003000,0.1375114,83057.0,83056.0,0.2947125]
[1743891003592,0.0861114,83057.0,83056.0,0.2947125]
[1743891005099,0.0018,83057.0,83056.0,0.2947125]
[1743891005301,0.10783948,83059.0,83058.0,0.0843104]
[1743891005501,0.10783948,83059.0,83058.0,0.2143104]
[1743891005702,0.10783948,83059.0,83058.0,0.3193104]
[1743891006300,0.00017993,83080.0,83070.0,0.0842983]
[1743891006503,0.17967102,83071.0,83070.0,0.5384983]
[1743891006696,0.17967102,83071.0,83070.0,0.6929983]
[1743891007608,0.18067102,83071.0,83070.0,0.6929983]
[1743891008102,0.001,83071.0,83070.0,0.6929983]
[1743891009403,0.0852972,83071.0,83070.0,0.6929983]
[1743891010106,0.001,83071.0,83070.0,0.6937983]
[1743891010303,0.0852972,83071.0,83070.0,0.6937983]
[1743891010904,0.001,83071.0,83070.0,0.6937983]
[1743891011109,0.0843013,83067.0,83066.0,0.12047179]
[1743891011403,0.0843236,83045.0,83039.0,0.008953]
[1743891011590,0.4458036,83045.0,83044.0,0.13188624]
[1743891011795,0.4458036,83045.0,83044.0,0.13256624]
[1743891011995,0.5488036,83045.0,83044.0,0.13188624]
[1743891012401,0.5488036,83045.0,83044.0,0.13008]
[1743891012600,0.5488036,83045.0,83044.0,0.13]
[1743891013300,0.6988036,83045.0,83036.0,0.00026061]
[1743891013502,0.4029653,83039.0,83031.0,0.00060218]
[1743891013707,0.4451358,83033.0,83032.0,0.06072]
[1743891014005,0.44601581,83033.0,83032.0,0.0278005]
[1743891014205,0.44601581,83033.0,83032.0,0.00072]
[1743891014409,0.44610661,83033.0,83032.0,0.00072]
[1743891014905,0.44810661,83033.0,83032.0,0.00072]
[1743891015208,0.45997209,83033.0,83032.0,0.00072]
[1743891016408,0.0843409,83028.0,83027.0,8e-05]
[1743891016703,0.0843439,83025.0,83024.0,0.00198732]
[1743891016907,0.0843439,83025.0,83018.0,8e-05]
[1743891016908,0.0421737,83022.0,83018.0,8e-05]
[1743891017103,0.08435,83019.0,83018.0,0.05]
[1743891017300,0.08543,83019.0,83018.0,0.05]
[1743891018106,0.18453,83019.0,83018.0,0.051]
[1743891018409,0.18453,83019.0,83018.0,0.053]
[1743891020606,0.18453,83019.0,83018.0,0.0618803]
[1743891027617,0.54533,83019.0,83018.0,0.0118803]
[1743891031112,0.54533,83019.0,83014.0,8e-05]
[1743891031113,0.0843541,83015.0,83014.0,8e-05]
[1743891031312,0.0843582,83011.0,83010.0,0.00018061]
[1743891031616,0.0843663,83003.0,83002.0,0.61404]
[1743891031816,0.44628631,83003.0,83002.0,0.09]
[1743891032018,0.0843714,82998.0,82997.0,8e-05]
[1743891032214,0.0843714,82998.0,82997.0,0.11008]
[1743891032417,0.0854514,82998.0,82997.0,0.11008]
[1743891032610,0.0843734,82996.0,82995.0,0.00060244]
[1743891032807,0.09749363,82996.0,82995.0,0.01060244]
[1743891033011,0.20189363,82996.0,82995.0,0.01060244]
[1743891033207,0.0843754,82994.0,82993.0,8e-05]
[1743891033513,0.0854554,82994.0,82993.0,0.0390553]
[1743891033713,0.1898554,82994.0,82993.0,0.0390553]
[1743891034415,0.1918554,82994.0,82993.0,0.0390553]
[1743891034621,0.1928554,82994.0,82993.0,0.0390553]
[1743891036314,0.5536554,82994.0,82993.0,0.0390553]
[1743891037324,0.0421893,82991.0,82985.0,8e-05]
[1743891037527,0.4451836,82986.0,82985.0,0.06008]
[1743891038025,0.5503836,82986.0,82985.0,0.06]
[1743891038321,0.5503836,82986.0,82979.0,8e-05]
[1743891038520,0.0843988,82971.0,82970.0,0.6642]
[1743891038821,0.0422009,82968.0,82966.0,0.0515]
[1743891039027,0.12772281,82968.0,82967.0,0.0498]
[1743891039327,0.12772281,82968.0,82967.0,0.1663991]
[1743891039538,0.12787458,82968.0,82967.0,0.2178991]
[1743891040022,0.12787458,82968.0,82967.0,0.21025246]
[1743891040727,0.12787458,82968.0,82967.0,0.21125246]
[1743891041417,0.12787458,82968.0,82967.0,0.21325246]
[1743891042528,0.12787458,82968.0,82967.0,0.29765536]
[1743891043614,0.04347268,82968.0,82967.0,0.29765536]
[1743891044633,0.04347268,82968.0,82967.0,0.21325246]
[1743891051438,0.76507268,82968.0,82967.0,0.21325246]
[1743891051738,0.81687268,82968.0,82967.0,0.21325246]
[1743891054133,0.81687268,82968.0,82967.0,0.11240189]
[1743891054333,0.86687268,82968.0,82967.0,0.11240189]
[1743891056639,0.14527268,82968.0,82967.0,0.11240189]
[1743891056841,0.86687268,82968.0,82967.0,0.11240189]
[1743891058045,0.14527268,82968.0,82967.0,0.11240189]
[1743891058340,0.86687268,82968.0,82967.0,0.11240189]
[1743891059041,0.14527268,82968.0,82967.0,0.11240189]
[1743891059232,0.86687268,82968.0,82967.0,0.11240189]
[1743891064248,0.14527268,82968.0,82967.0,0.11240189]
[1743891064449,0.86687268,82968.0,82967.0,0.11240189]
[1743891065050,0.86687268,82968.0,82967.0,0.09195246]
[1743891065752,0.14527268,82968.0,82967.0,0.09195246]
[1743891066252,0.86687268,82968.0,82967.0,0.09195246]
[1743891066452,0.81687268,82968.0,82967.0,0.09195246]
[1743891067141,0.81687268,82968.0,82967.0,0.17635536]
[1743891067544,0.81687268,82968.0,82967.0,0.33395536]
[1743891068253,0.87547426,82968.0,82967.0,0.33395536]
[1743891068550,0.87547426,82968.0,82967.0,0.24955246]
[1743891071248,0.78147336,82968.0,82967.0,0.38671536]
[1743891071551,0.21507725,82976.0,82975.0,0.0843948]
[1743891071847,0.21507725,82976.0,82975.0,0.2413948]
[1743891072040,0.00018073,82979.0,82978.0,0.0843917]
[1743891072241,0.00018073,82979.0,82978.0,0.4470917]
[1743891072452,0.3608,82985.0,82984.0,0.0843856]
[1743891072643,0.36089365,82985.0,82984.0,0.3973856]
[1743891072838,0.0421874,82995.0,82990.0,0.0843795]
[1743891073047,0.084377,82993.0,82990.0,0.3343795]
[1743891073264,0.0421862,82997.0,82996.0,0.0421867]
[1743891073453,0.0421862,82997.0,82996.0,0.1021867]
[1743891073752,0.1265586,82997.0,82996.0,0.1021867]
[1743891074158,0.1265586,82997.0,82996.0,0.2071867]
[1743891075153,0.1265586,82997.0,82996.0,0.165]
[1743891075354,0.1273186,82997.0,82996.0,0.2186]
[1743891075553,0.2327186,82997.0,82996.0,0.2186]
[1743891075754,0.2357186,82997.0,82996.0,0.11296]
[1743891075951,0.2397186,82997.0,82996.0,0.06]
[1743891076258,0.2397186,82997.0,82988.0,0.00026073]
[1743891076259,0.0843805,82989.0,82988.0,0.00026073]
[1743891076460,0.4459405,82989.0,82988.0,0.01076]
[1743891076645,0.5513405,82989.0,82988.0,0.01076]
[1743891077044,0.0843856,82984.0,82977.0,0.35464715]
[1743891077375,0.4451917,82978.0,82977.0,0.40470115]
[1743891077649,0.0843988,82971.0,82967.0,0.00895246]
[1743891077854,0.44643881,82971.0,82970.0,0.53037108]
[1743891078157,0.54743881,82971.0,82970.0,0.53037108]
[1743891078340,0.0844019,82968.0,82967.0,0.00895246]
[1743891078546,0.0844039,82966.0,82965.0,9.812e-05]
[1743891078745,0.08580391,82966.0,82965.0,0.09149812]
[1743891079152,0.19030391,82966.0,82965.0,0.09149812]
[1743891080349,0.19030391,82966.0,82965.0,0.09349812]
[1743891082254,0.19030391,82966.0,82965.0,0.10459787]
[1743891090764,0.19030391,82966.0,82965.0,0.12132537]
[1743891091264,0.13990391,82966.0,82965.0,0.12132537]
[1743891091565,0.13990391,82966.0,82965.0,0.22452537]
[1743891092655,0.00140001,82966.0,82965.0,0.66973027]
[1743891092957,0.1364956,82975.0,82974.0,0.0843958]
[1743891093162,0.0843956,82975.0,82974.0,0.2407958]
[1743891093354,0.1366923,82979.0,82978.0,0.0843917]
[1743891093555,0.0843923,82979.0,82978.0,0.1343917]
[1743891094865,0.14379484,82980.0,82978.0,0.1343917]
[1743891094866,0.14379484,82980.0,82979.0,0.0843907]
[1743891095062,0.14379484,82980.0,82979.0,0.5751907]
[1743891095269,0.14519485,82980.0,82979.0,0.5751907]
[1743891095569,0.14519485,82980.0,82979.0,0.7251907]
[1743891095868,0.14519485,82980.0,82979.0,0.7762907]
[1743891096054,0.17992429,82986.0,82985.0,0.0843846]
[1743891096259,0.17992429,82986.0,82985.0,0.3970246]
[1743891097069,0.26430789,82986.0,82985.0,0.3970246]
[1743891097273,0.08456433,82986.0,82985.0,0.3970246]
[1743891097975,0.00018073,82986.0,82985.0,0.3970246]
[1743891098281,0.00018073,82986.0,82985.0,0.3980246]
[1743891098981,0.00018073,82986.0,82985.0,0.7588246]
[1743891100181,0.00018073,82986.0,82985.0,0.7594646]
[1743891100876,0.3608,82998.0,82986.0,0.0421915]
[1743891101184,0.3608,82998.0,82994.0,0.0843752]
[1743891101185,0.41616001,82998.0,82994.0,0.0843752]
[1743891101380,0.41616001,82998.0,82994.0,0.05072]
[1743891101875,0.05536001,82998.0,82997.0,0.4451724]
[1743891102074,0.05536001,82998.0,82997.0,0.1350124]
[1743891102480,0.05736001,82998.0,82997.0,0.1350124]
[1743891102876,0.05936001,82998.0,82997.0,0.1350124]
[1743891103069,0.14173141,82998.0,82997.0,0.05064]
[1743891103269,0.19503141,82998.0,82997.0,0.05]
[1743891104573,0.19603141,82998.0,82997.0,0.05]
[1743891106486,0.11166001,82998.0,82997.0,0.05]
[1743891107887,0.19603141,82998.0,82997.0,0.05]
[1743891108107,0.11166001,82998.0,82997.0,0.05]
[1743891108275,0.19603141,82998.0,82997.0,0.05]
[1743891109486,0.11166001,82998.0,82997.0,0.05]
[1743891109687,0.19603141,82998.0,82997.0,0.05]
[1743891113387,0.19603141,82998.0,82997.0,0.06808]
[1743891118196,0.11166001,82998.0,82997.0,0.06808]
[1743891118397,0.11166001,82998.0,82997.0,0.1524524]
[1743891118592,0.11166001,82998.0,82997.0,0.06808]
[1743891119198,0.19603141,82998.0,82997.0,0.06808]
[1743891120497,0.11166001,82998.0,82997.0,0.06808]
[1743891120796,0.19603141,82998.0,82997.0,0.06808]
[1743891121101,0.11166001,82998.0,82997.0,0.06808]
[1743891121484,0.11166001,82998.0,82997.0,0.1524524]
[1743891122192,0.11166001,82998.0,82997.0,0.2606524]
[1743891122382,0.06136001,82998.0,82997.0,0.2606524]
[1743891122587,0.0604,82998.0,82997.0,0.2606524]
[1743891124589,0.00018073,83004.0,83003.0,0.0843663]
[1743891124789,0.0528,83007.0,83003.0,0.0843663]
[1743891124790,0.0534,83006.0,83005.0,0.0843643]
[1743891125097,0.0531,83013.0,83012.0,0.0843572]
[1743891125302,0.05406001,83013.0,83012.0,0.1749972]
[1743891125487,0.05406001,83013.0,83012.0,0.2261972]
[1743891126500,0.05436001,83013.0,83012.0,0.2815972]
[1743891127596,0.06036001,83013.0,83012.0,0.2815972]
[1743891128101,0.06436001,83013.0,83012.0,0.2815972]
[1743891129102,0.06436001,83013.0,83012.0,0.29826076]
[1743891129302,0.06436001,83013.0,83012.0,0.307435]
[1743891129896,0.06436001,83013.0,83012.0,0.2230778]
[1743891130096,0.06436001,83013.0,83012.0,0.307435]
[1743891133100,0.06436001,83013.0,83012.0,0.325515]
[1743891133301,0.01096001,83013.0,83012.0,0.668235]
[1743891133497,0.01,83013.0,83012.0,0.686315]
[1743891134610,0.009,83013.0,83012.0,0.686315]
[1743891134997,0.009,83013.0,83012.0,0.66965144]
[1743891152917,0.009,83013.0,83012.0,0.65157144]
[1743891153529,0.009,83013.0,83012.0,0.66965144]
[1743891165814,0.009,83013.0,83012.0,1.08485144]
[1743891168229,0.0454,83016.0,83015.0,0.0843541]
[1743891168416,0.0454,83016.0,83015.0,0.3550741]
[1743891168616,0.05338073,83021.0,83016.0,0.0421761]
[1743891168924,0.17974356,83038.0,83030.0,0.0843389]
[1743891169123,0.14497429,83031.0,83030.0,0.3775789]
[1743891169319,0.17974356,83038.0,83036.0,0.0843323]
[1743891169517,0.18070357,83038.0,83037.0,0.4451318]
[1743891169725,0.0421607,83048.0,83040.0,0.0843278]
[1743891169932,0.21604176,83045.0,83041.0,0.0843273]
[1743891170121,0.21604176,83045.0,83041.0,0.36054]
[1743891170327,0.21604176,83045.0,83044.0,0.4451246]
[1743891170526,0.21508175,83045.0,83044.0,0.7384046]
[1743891170730,0.21604176,83045.0,83044.0,0.8283046]
[1743891171131,0.21704176,83045.0,83044.0,0.8283046]
[1743891171728,0.00018073,83046.0,83044.0,0.8283046]
[1743891171929,0.21508175,83052.0,83051.0,0.0843175]
[1743891172126,0.0004,83056.0,83055.0,0.0843135]
[1743891172435,0.0004,83056.0,83055.0,0.2150335]
[1743891172632,0.0004,83056.0,83055.0,0.3061335]
[1743891173023,0.0004,83056.0,83055.0,0.3242135]
[1743891173937,0.0004,83056.0,83055.0,0.3334192]
[1743891174129,0.0014,83056.0,83055.0,0.1580057]
[1743891174330,0.0857125,83056.0,83055.0,0.1399257]
[1743891174526,0.2363925,83056.0,83055.0,0.0685257]
[1743891174722,0.2363925,83056.0,83054.0,8e-05]
[1743891174723,0.0843135,83055.0,83054.0,8e-05]
[1743891174923,0.08519351,83055.0,83051.0,0.35476]
[1743891175133,0.0843165,83052.0,83051.0,0.3654]
[1743891175341,0.0854765,83052.0,83051.0,0.3654]
[1743891175538,0.1294765,83052.0,83051.0,0.3654]
[1743891176644,0.2824765,83052.0,83051.0,0.3654]
[1743891177031,0.2824765,83052.0,83051.0,0.3289]
[1743891177226,0.2824765,83052.0,83051.0,0.33776318]
[1743891177436,0.2824765,83052.0,83051.0,0.01950318]
[1743891177742,0.2824765,83052.0,83051.0,0.01886318]
[1743891177947,0.3294765,83052.0,83051.0,0.01886318]
[1743891178131,0.1794765,83052.0,83051.0,0.01886318]
[1743891179537,0.5402765,83052.0,83051.0,0.01886318]
[1743891180842,0.6902765,83052.0,83051.0,0.01886318]
[1743891181045,0.0843348,83034.0,83028.0,0.00011103]
[1743891181240,0.0843348,83034.0,83033.0,0.10180637]
[1743891181241,0.4451348,83034.0,83033.0,0.10180637]
[1743891181436,0.4462948,83034.0,83033.0,0.10180637]
[1743891181637,0.5369948,83034.0,83033.0,0.10180637]
[1743891181837,0.5369948,83034.0,83033.0,0.1109369]
[1743891182237,0.5389948,83034.0,83033.0,0.1109369]
[1743891182434,0.5508698,83034.0,83033.0,0.1109369]
[1743891188349,0.5389948,83034.0,83033.0,0.1109369]
[1743891188944,0.55076926,83034.0,83033.0,0.1109369]
[1743891194542,0.5389948,83034.0,83033.0,0.1109369]
[1743891194744,0.36396,83034.0,83033.0,0.1109369]
[1743891194944,0.00316,83034.0,83033.0,0.1952727]
[1743891195250,0.00018062,83042.0,83041.0,0.0843277]
[1743891195552,0.00018062,83042.0,83041.0,0.1143277]
[1743891195754,0.00018062,83042.0,83041.0,0.2093277]
[1743891197347,0.08450732,83042.0,83041.0,0.125]
[1743891197648,0.0004,83056.0,83041.0,0.59326]
[1743891197649,0.01224202,83056.0,83041.0,0.59326]
[1743891197850,0.01224202,83056.0,83055.0,0.0843135]
[1743891198059,0.0843026,83066.0,83064.0,0.0843034]
[1743891198368,0.0421489,83071.0,83064.0,0.03]
[1743891198653,0.0421489,83071.0,83065.0,0.0918]
[1743891198855,0.0842979,83071.0,83067.0,0.084301]
[1743891199152,0.0446,83074.0,83068.0,0.1723003]
[1743891199356,0.0446,83074.0,83068.0,0.2123003]
[1743891199558,0.29976886,83069.0,83068.0,0.128]
[1743891199860,0.29976886,83069.0,83068.0,0.2123003]
[1743891200065,0.30056886,83069.0,83068.0,0.12864]
[1743891200458,0.0850993,83069.0,83068.0,0.12864]
[1743891200754,0.0870993,83069.0,83068.0,0.12864]
[1743891201156,0.0870993,83069.0,83068.0,0.17664]
[1743891201564,0.0028,83069.0,83068.0,0.2609403]
[1743891201755,0.0870993,83069.0,83068.0,0.2292]
[1743891202760,0.1793993,83069.0,83068.0,0.2292]
[1743891204257,0.0870993,83069.0,83068.0,0.2292]
[1743891204655,0.1327993,83069.0,83068.0,0.2292]
[1743891205367,0.0870993,83069.0,83068.0,0.2292]
[1743891205871,0.1347993,83069.0,83068.0,0.2292]
[1743891208560,0.1814993,83069.0,83068.0,0.2292]
[1743891209267,0.1814993,83069.0,83068.0,0.08864]
[1743891209459,0.0843064,83062.0,83061.0,0.0449]
[1743891209666,0.4451064,83062.0,83061.0,0.0549]
[1743891210069,0.5368064,83062.0,83061.0,0.0549]
[1743891210263,0.5376064,83062.0,83061.0,0.0549]
[1743891210658,0.5376064,83062.0,83061.0,0.01]
[1743891210854,0.0843094,83059.0,83058.0,0.00026062]
[1743891211067,0.0851094,83059.0,83058.0,0.01026062]
[1743891211267,0.1763094,83059.0,83058.0,0.01018062]
[1743891213564,0.1783094,83059.0,83058.0,0.01018062]
[1743891213961,0.5391094,83059.0,83058.0,0.01018062]
[1743891224987,0.5391094,83059.0,83058.0,0.00018062]
[1743891225780,0.7391094,83059.0,83058.0,0.00018062]
[1743891229477,0.6548,83059.0,83036.0,0.28753708]
[1743891229788,0.0843246,83044.0,83043.0,0.0476]
[1743891229979,0.4451246,83044.0,83043.0,0.0476]
[1743891230178,0.4451246,83044.0,83036.0,0.28761708]
[1743891230179,0.0843318,83037.0,83036.0,0.28761708]
[1743891230383,0.4451318,83037.0,83036.0,0.36761708]
[1743891230677,0.5399318,83037.0,83036.0,0.29153708]
[1743891231292,0.5399318,83037.0,83036.0,0.28953708]
[1743891231493,0.5399318,83037.0,83036.0,0.28753708]
[1743891231695,0.5399318,83037.0,83036.0,0.28953708]
[1743891232195,0.5399318,83037.0,83036.0,0.002]
[1743891233496,0.5419318,83037.0,83036.0,0.002]
[1743891233796,0.5419318,83037.0,83036.0,0.0493]
[1743891233997,0.5419318,83037.0,83036.0,0.0473]
[1743891234792,0.5419318,83037.0,83036.0,0.0968]
[1743891235190,0.5428518,83037.0,83036.0,0.0968]
[1743891236598,0.4956518,83037.0,83036.0,0.0968]
[1743891236803,0.4480518,83037.0,83036.0,0.0968]
[1743891237207,0.0872518,83037.0,83036.0,0.1917728]
[1743891237401,0.00292,83037.0,83036.0,0.1917728]
[1743891237607,0.0863318,83037.0,83036.0,0.1917728]
[1743891237809,0.0028,83037.0,83036.0,0.3417728]
[1743891238104,0.002,83037.0,83036.0,0.3417728]
[1743891238306,0.546721,83044.0,83043.0,0.0843257]
[1743891238508,0.547521,83044.0,83043.0,0.1243257]
[1743891238708,0.547521,83044.0,83043.0,0.1250457]
[1743891239012,0.547521,83044.0,83043.0,0.08582]
[1743891239911,0.4037623,83044.0,83043.0,0.08582]
[1743891240111,0.4037623,83044.0,83043.0,0.0851]
[1743891241407,0.4037623,83044.0,83043.0,0.1334]
[1743891245209,0.4037623,83044.0,83043.0,0.13404]
[1743891252717,0.4508623,83044.0,83043.0,0.13404]
[1743891252917,0.4995623,83044.0,83043.0,0.04]
[1743891253120,0.5479623,83044.0,83043.0,0.04]
[1743891254319,0.5479623,83044.0,83040.0,8e-05]
[1743891254320,0.0843277,83041.0,83040.0,8e-05]
[1743891254522,0.0843338,83035.0,83034.0,0.0466]
[1743891254814,0.0843338,83035.0,83034.0,0.01]
[1743891255017,0.1801338,83035.0,83034.0,0.0108]
[1743891255211,0.1809338,83035.0,83034.0,0.0108]
[1743891255715,0.1809338,83035.0,83034.0,0.01]
[1743891255918,0.1809338,83035.0,83034.0,0.0586]
[1743891256216,0.1809338,83035.0,83034.0,0.0594]
[1743891256920,0.1809338,83035.0,83034.0,0.1054]
[1743891257618,0.1809338,83035.0,83034.0,0.0118]
[1743891258809,0.19588781,83035.0,83034.0,0.0118]
[1743891259724,0.14608781,83035.0,83034.0,0.011]
[1743891259923,0.14528781,83035.0,83034.0,0.1005]
[1743891260329,0.19128781,83035.0,83034.0,0.1005]
[1743891261118,0.14528781,83035.0,83034.0,0.1005]
[1743891262520,0.14528781,83035.0,83034.0,0.1015]
[1743891262729,0.1303338,83035.0,83034.0,0.1015]
[1743891263427,0.1303338,83035.0,83034.0,0.1005]
[1743891263817,0.0843338,83035.0,83034.0,0.1005]
[1743891264831,0.0851338,83035.0,83034.0,0.10114]
[1743891267723,0.0851338,83035.0,83034.0,0.1005]
[1743891268432,0.1316338,83035.0,83034.0,0.1005]
[1743891273032,0.1316338,83035.0,83034.0,0.10114]
[1743891273238,0.1316338,83035.0,83034.0,0.1005]
[1743891275340,0.0851338,83035.0,83034.0,0.1005]
[1743891275637,0.0851338,83035.0,83034.0,0.10114]
[1743891275841,0.0851338,83035.0,83034.0,0.1854748]
[1743891277042,0.0008,83035.0,83034.0,0.5462748]
[1743891277335,0.0843305,83039.0,83038.0,0.0421645]
[1743891277540,0.1264932,83041.0,83040.0,0.0843287]
[1743891277736,0.1264932,83041.0,83040.0,0.1350087]
[1743891277936,0.00084,83041.0,83040.0,0.2277087]
[1743891278242,0.1437587,83043.0,83042.0,0.0843267]
[1743891278442,0.1445987,83043.0,83042.0,0.5058067]
[1743891278627,0.1445987,83043.0,83042.0,0.5954067]
[1743891279028,0.00084,83043.0,83042.0,0.5954067]
[1743891279333,0.00018062,83045.0,83042.0,0.5954067]
[1743891279539,0.00018062,83045.0,83044.0,0.0843246]
[1743891279743,0.00018062,83045.0,83044.0,0.2774846]
[1743891279936,0.08450422,83045.0,83044.0,0.28526]
[1743891280635,0.08530422,83045.0,83044.0,0.28526]
[1743891281043,0.08450422,83045.0,83044.0,0.28526]
[1743891281936,0.08450422,83045.0,83044.0,0.64606]
[1743891282649,0.08450422,83045.0,83044.0,0.7303846]
[1743891283644,0.08450422,83045.0,83044.0,0.3695846]
[1743891283946,0.08530422,83045.0,83044.0,0.64606]
[1743891284153,0.12960422,83045.0,83044.0,0.64606]
[1743891284339,0.12960422,83045.0,83044.0,0.14064]
[1743891284536,0.17774422,83045.0,83044.0,0.14064]
[1743891285247,0.53770422,83045.0,83044.0,0.14064]
[1743891285840,0.53770422,83045.0,83044.0,0.00064]
[1743891286544,0.0421642,83041.0,83037.0,0.36018373]
[1743891286858,0.0421642,83041.0,83027.0,8e-05]
[1743891286859,0.0843368,83032.0,83027.0,8e-05]
[1743891287040,0.0843368,83032.0,83011.0,0.05252]
[1743891287240,0.0843368,83032.0,83027.0,8e-05]
[1743891287440,0.1784368,83032.0,83031.0,0.2887246]
[1743891288647,0.1784368,83032.0,83031.0,0.30732787]
[1743891289152,0.1784368,83032.0,83031.0,0.30832787]
[1743891289348,0.1784368,83032.0,83031.0,0.31737959]
[1743891289854,0.1794368,83032.0,83031.0,0.31737959]
[1743891290645,0.1794368,83032.0,83031.0,0.02925717]
[1743891291452,0.9010368,83032.0,83031.0,0.02925717]
[1743891302057,1.00851991,83032.0,83031.0,0.02925717]
[1743891304153,1.00851991,83032.0,83031.0,0.0126539]
[1743891306461,0.9010368,83032.0,83031.0,0.0126539]
[1743891309960,0.9010368,83032.0,83031.0,0.0608539]
[1743891310668,0.9010368,83032.0,83031.0,0.07745717]
[1743891315164,0.8532368,83032.0,83031.0,0.07745717]
[1743891317169,1.09147723,83032.0,83031.0,0.07745717]
[1743891320083,0.91179872,83032.0,83031.0,0.07745717]
[1743891326274,0.91179872,83032.0,83031.0,0.07545717]
[1743891326474,0.91279872,83032.0,83031.0,0.07445717]
[1743891329469,0.91279872,83032.0,83031.0,0.07385499]
[1743891329673,0.95999872,83032.0,83031.0,0.07385499]
[1743891330473,1.15999872,83032.0,83031.0,0.07385499]
[1743891337480,0.43839872,83032.0,83031.0,0.07385499]
[1743891337683,1.15999872,83032.0,83031.0,0.07385499]
[1743891338781,1.15999872,83032.0,83031.0,9e-08]
[1743891339981,0.43839872,83032.0,83031.0,9e-08]
[1743891340183,1.15999872,83032.0,83031.0,9e-08]
[1743891340774,1.15999872,83032.0,83031.0,4e-08]
[1743891340992,0.0843399,83029.0,83028.0,0.04509165]
[1743891341189,0.0853399,83029.0,83028.0,0.04509165]
[1743891341390,0.2262399,83029.0,83028.0,0.04509165]
[1743891341590,0.084347,83022.0,83021.0,8e-05]
[1743891341889,0.0843531,83016.0,83012.0,0.0494]
[1743891342081,0.0853531,83016.0,83015.0,0.01]
[1743891342282,0.2238531,83016.0,83015.0,0.01]